bitfinex/quotes_ETHUSD_20250222
["timestamp","ask_amount","ask_price","bid_price","bid_amount"]
[1740229746958,3.8048,2745.1,2744.7,0.12436157]
[1740229747262,3.8048,2745.1,2744.7,3.76772157]
[1740229748541,3.8048,2745.1,2744.7,3.76763157]
[1740229749219,4.19213887,2745.4,2744.9,3.64298]
[1740229749416,0.7686,2745.4,2745.0,3.64292]
[1740229749601,0.7686,2745.4,2745.0,3.76880967]
[1740229750006,3.7686,2745.4,2745.0,3.76880967]
[1740229750203,0.7686,2745.4,2745.2,3.64263]
[1740229750433,0.7686,2745.4,2745.0,0.12588967]
[1740229750641,0.7686,2745.4,2745.3,0.12584911]
[1740229750807,1.55203489,2745.4,2745.3,0.12584911]
[1740229751003,1.55203489,2745.4,2744.8,3.64313]
[1740229751421,1.55203489,2745.4,2744.9,0.1259032]
[1740229751944,1.55203489,2745.4,2744.9,3.7690132]
[1740229752113,0.7686,2745.4,2744.9,3.7690132]
[1740229752613,0.7686,2745.4,2745.0,3.64298]
[1740229752819,3.42353887,2745.5,2745.1,3.76869615]
[1740229753024,4.19213887,2745.7,2745.1,0.12587615]
[1740229753270,4.19213887,2745.7,2745.1,5.95371477]
[1740229753547,4.19213887,2746.0,2745.7,3.64201]
[1740229753731,4.19213887,2746.3,2746.0,3.64157]
[1740229753909,4.19213887,2746.3,2745.8,0.12539922]
[1740229754109,4.19213887,2746.3,2745.7,3.64197]
[1740229754308,4.97546576,2746.3,2745.9,0.12538571]
[1740229754547,4.97546576,2746.3,2745.7,3.64197]
[1740229754877,4.97546576,2746.3,2745.8,3.64184]
[1740229755046,4.97546576,2746.3,2745.6,0.8096]
[1740229755047,4.19213887,2746.3,2745.9,3.64167]
[1740229755225,4.19213887,2746.3,2746.0,3.64162]
[1740229755612,4.19213887,2746.3,2746.1,3.766577]
[1740229755813,0.7686,2746.3,2746.1,3.766577]
[1740229756014,0.7686,2746.3,2746.2,3.64139]
[1740229756228,0.7624,2746.5,2746.2,3.76644348]
[1740229759369,3.42353887,2746.3,2746.2,0.12505348]
[1740229759648,4.18593887,2746.3,2746.2,0.12505348]
[1740229759886,4.18593887,2746.3,2745.8,3.64191]
[1740229760033,4.18593887,2746.3,2745.9,3.64179]
[1740229760228,4.18593887,2746.3,2746.2,0.12505348]
[1740229760636,4.60453276,2746.3,2745.8,3.64191]
[1740229760846,4.18593887,2746.3,2746.1,3.6414]
[1740229761162,3.42353887,2746.3,2746.2,0.12366561]
[1740229761654,3.42353887,2746.3,2746.2,3.76505561]
[1740229761856,4.18593887,2746.6,2746.2,3.76505561]
[1740229762028,4.18593887,2746.6,2746.3,3.64114]
[1740229762222,4.18593887,2746.6,2746.2,0.12366561]
[1740229762447,4.18593887,2746.6,2746.4,0.12363858]
[1740229762657,4.18593887,2746.6,2746.1,3.64143]
[1740229762658,4.18593887,2746.6,2746.3,0.12365209]
[1740229762834,7.18593887,2746.6,2746.5,0.12362508]
[1740229763158,7.60453276,2746.6,2746.5,0.12362508]
[1740229763346,7.60453276,2746.6,2746.0,3.64158]
[1740229763660,7.18593887,2746.6,2745.9,3.64172]
[1740229763858,10.82679887,2746.6,2746.0,0.12369263]
[1740229764160,10.82679887,2746.6,2746.0,3.76534263]
[1740229764658,3.42353887,2746.3,2746.0,0.12369263]
[1740229766764,3.42353887,2746.3,2746.0,3.76533263]
[1740229767137,3.42353887,2746.3,2746.0,0.12369263]
[1740229767766,3.42353887,2746.3,2746.0,3.76535263]
[1740229768735,0.773,2746.2,2746.0,0.12369263]
[1740229768932,0.773,2746.2,2745.7,5.37]
[1740229769267,0.773,2746.2,2745.4,0.7683]
[1740229769268,3.42353887,2746.0,2745.4,9.78067]
[1740229769467,3.42353887,2746.0,2745.4,5.37]
[1740229769468,4.41495,2745.8,2745.4,5.37]
[1740229769770,4.41519,2745.6,2745.5,0.11934204]
[1740229770067,4.4153,2745.6,2744.8,3.64314]
[1740229770232,4.4153,2745.6,2744.9,3.64311]
[1740229770431,4.4153,2745.6,2745.0,3.7534499]
[1740229770637,3.42353887,2745.5,2745.0,3.7534499]
[1740229771164,3.42353887,2745.5,2745.1,3.64283]
[1740229771372,3.42353887,2745.5,2745.1,3.75357796]
[1740229771668,3.42353887,2745.5,2745.1,0.11074796]
[1740229771971,3.42353887,2745.5,2745.1,3.75353796]
[1740229772165,3.42353887,2745.5,2745.1,0.11074796]
[1740229772672,3.42353887,2745.5,2745.1,3.75358796]
[1740229772855,3.42353887,2745.5,2745.1,0.11074796]
[1740229774572,3.42353887,2745.2,2745.1,0.11074796]
[1740229774768,3.42353887,2745.2,2744.6,3.64346]
[1740229774939,3.42353887,2745.2,2745.1,0.11163298]
[1740229775139,7.83925887,2745.2,2744.4,4.41203]
[1740229775358,10.83925887,2745.2,2745.1,0.11163298]
[1740229775580,0.7682,2744.7,2744.2,3.64399]
[1740229775782,7.83516887,2744.7,2744.1,5.37]
[1740229776388,6.64367,2744.5,2743.9,5.37]
[1740229776667,3.42353887,2744.4,2743.9,9.01435]
[1740229776871,0.7682,2744.3,2743.9,9.01435]
[1740229777071,0.7682,2744.3,2743.9,5.37]
[1740229777263,4.41216,2744.3,2743.9,5.37]
[1740229777574,3.0,2744.2,2743.6,9.01471]
[1740229777934,3.0,2744.2,2743.7,3.6447]
[1740229778140,3.0,2744.2,2743.6,12.65945]
[1740229778336,3.0,2744.2,2743.6,5.37]
[1740229778559,3.42353887,2744.1,2743.6,5.37]
[1740229778776,4.41256,2744.0,2743.3,3.91014]
[1740229780074,3.42353887,2743.8,2743.3,3.64514]
[1740229780465,3.42353887,2743.8,2743.5,3.64494]
[1740229780641,3.42353887,2743.8,2743.3,7.29026]
[1740229780841,3.42353887,2743.8,2743.4,3.64506]
[1740229781342,3.42353887,2743.8,2743.3,3.64519]
[1740229781343,0.7682,2743.7,2743.3,3.64519]
[1740229781546,0.7682,2743.7,2743.2,5.37]
[1740229782098,3.0,2743.5,2743.1,0.005]
[1740229782259,6.42353887,2743.5,2743.1,0.005]
[1740229783143,6.42353887,2743.5,2743.1,3.65039]
[1740229783579,6.42353887,2743.5,2743.1,0.005]
[1740229783875,6.42353887,2743.5,2743.2,3.64533]
[1740229784077,3.0,2743.5,2743.2,3.64533]
[1740229786391,3.0,2743.5,2743.1,0.005]
[1740229786775,3.0,2743.5,2743.1,3.65046]
[1740229787174,3.0,2743.5,2743.2,0.10243952]
[1740229788891,3.0,2743.5,2743.2,3.74776952]
[1740229789282,3.0,2743.5,2743.2,0.10243952]
[1740229791279,0.817,2743.3,2743.2,0.10243952]
[1740229794405,0.817,2743.2,2741.7,5.37]
[1740229794626,3.817,2742.3,2741.8,3.64711]
[1740229794935,4.37082389,2742.2,2741.7,5.37]
[1740229795606,0.72405389,2742.2,2741.7,5.37]
[1740229796514,0.72405389,2742.2,2741.7,9.01735]
[1740229796692,3.817,2742.3,2741.7,5.37]
[1740229796895,4.24053887,2742.6,2742.1,3.64683]
[1740229801073,7.88670887,2742.6,2742.1,3.64683]
[1740229801318,4.24053887,2742.6,2742.1,3.64683]
[1740229801499,0.42405389,2742.5,2742.1,3.64683]
[1740229801717,0.42405389,2742.5,2742.0,3.64691]
[1740229801896,4.24053887,2742.6,2742.3,3.64648]
[1740229802077,4.24053887,2742.6,2742.4,0.08179119]
[1740229802078,0.817,2742.5,2742.4,0.08179119]
[1740229802280,0.817,2742.5,2742.1,3.64681]
[1740229802593,0.817,2742.5,2742.2,3.72912291]
[1740229803011,0.817,2742.5,2742.2,0.08253291]
[1740229803328,1.24105389,2742.5,2742.3,0.08246902]
[1740229803627,1.24105389,2742.5,2742.0,3.64695]
[1740229803826,1.24105389,2742.5,2742.4,0.08245547]
[1740229804325,1.24105389,2742.5,2742.0,3.64695]
[1740229804628,1.24105389,2742.5,2742.4,0.08245547]
[1740229804830,1.24105389,2742.5,2742.0,3.64695]
[1740229804979,1.24105389,2742.5,2742.4,0.08245547]
[1740229805178,1.24105389,2742.5,2742.0,3.64695]
[1740229805478,0.8171,2742.0,2741.9,5.37]
[1740229805698,4.46407,2742.0,2741.9,5.4504623]
[1740229806027,0.8171,2742.0,2741.9,5.4504623]
[1740229806529,0.8171,2742.4,2741.9,6.2220623]
[1740229806677,1.181705,2742.6,2742.1,3.64673]
[1740229806878,4.181705,2742.6,2742.2,0.07471553]
[1740229807393,4.181705,2742.6,2742.2,3.72136553]
[1740229807591,4.181705,2742.6,2742.2,0.07471553]
[1740229813392,7.827875,2742.6,2742.2,0.07471553]
[1740229813732,4.181705,2742.6,2742.2,0.07471553]
[1740229814838,7.827915,2742.6,2742.2,0.07471553]
[1740229815508,3.64632,2742.5,2741.9,9.78863]
[1740229815702,4.181705,2742.6,2742.0,3.72135127]
[1740229816031,4.181705,2742.6,2742.1,3.64674]
[1740229816353,4.181705,2742.6,2742.2,0.07447416]
[1740229817442,3.64632,2742.5,2742.2,0.07447416]
[1740229817625,3.64632,2742.5,2742.0,3.64685]
[1740229817824,7.06997887,2742.4,2742.3,0.07449076]
[1740229818147,4.45807,2742.0,2741.9,5.37]
[1740229819444,3.64713,2741.9,2741.4,6.1226]
[1740229819645,8.18134887,2741.8,2741.4,5.37]
[1740229820225,4.45854,2741.7,2741.4,5.37]
[1740229820439,3.8111,2741.7,2741.1,5.37]
[1740229820734,4.84683489,2741.6,2741.1,5.37]
[1740229821113,7.84683489,2741.6,2741.1,5.37]
[1740229821740,4.19924489,2741.6,2741.1,9.01815]
[1740229823163,0.7827,2741.5,2741.1,5.37]
[1740229823532,0.7827,2741.5,2740.9,4.47541]
[1740229823718,0.7827,2741.5,2741.0,3.64828]
[1740229826222,0.7827,2741.5,2741.1,0.11633473]
[1740229826654,0.7827,2741.5,2741.1,3.76448473]
[1740229826824,0.7827,2741.5,2741.1,0.11633473]
[1740229827423,1.64565249,2741.5,2741.1,0.11633473]
[1740229827623,5.06919136,2741.5,2740.9,3.6484]
[1740229829867,8.71689136,2741.5,2740.8,7.297]
[1740229830162,8.71689136,2741.5,2740.9,3.64842]
[1740229830527,5.06919136,2741.5,2741.0,3.64821]
[1740229831185,4.20623887,2741.5,2741.1,3.64804]
[1740229831358,0.7827,2741.5,2741.1,3.64804]
[1740229831553,0.7827,2741.5,2741.0,7.29642]
[1740229831856,0.7827,2741.5,2741.1,3.64815]
[1740229832278,0.7827,2741.5,2741.2,0.07386712]
[1740229832568,0.7827,2741.5,2741.2,0.15422482]
[1740229834283,1.28089449,2741.5,2741.2,0.15422482]
[1740229834846,1.28089449,2741.5,2740.9,3.64833]
[1740229835030,1.28089449,2741.5,2741.3,0.15412419]
[1740229835231,1.28089449,2741.5,2740.9,3.64833]
[1740229835457,1.28089449,2741.5,2741.4,0.1541077]
[1740229835661,1.28089449,2741.5,2740.9,3.64833]
[1740229835978,1.28089449,2741.5,2741.0,0.15417367]
[1740229836158,0.91276494,2741.4,2741.0,0.15417367]
[1740229836374,0.8066,2741.3,2741.0,0.15417367]
[1740229836578,0.8066,2741.3,2740.7,9.01862]
[1740229836781,0.8066,2741.3,2741.1,0.14874066]
[1740229836963,0.8066,2741.3,2740.7,9.0186]
[1740229837292,1.73547383,2741.3,2741.2,0.14872416]
[1740229837473,1.73547383,2741.3,2740.7,9.01859]
[1740229837789,1.73547383,2741.3,2740.8,3.64855]
[1740229838087,1.73547383,2741.3,2740.9,3.64839]
[1740229838388,1.73547383,2741.3,2741.0,0.14903891]
[1740229838902,1.73547383,2741.3,2740.8,3.64856]
[1740229839052,1.73547383,2741.3,2741.1,0.14902242]
[1740229839247,0.26482388,2741.2,2740.7,9.01859]
[1740229839453,0.8066,2741.3,2740.7,9.01859]
[1740229839771,0.8066,2741.3,2740.7,12.6672]
[1740229840501,0.8066,2741.5,2740.9,3.64831]
[1740229842165,0.8066,2741.5,2740.7,9.01859]
[1740229842401,0.8066,2741.5,2740.8,3.64849]
[1740229842694,2.25910989,2741.5,2740.8,3.64849]
[1740229842895,5.10014989,2741.5,2740.7,9.01859]
[1740229843202,0.7578,2741.4,2740.7,9.01859]
[1740229843496,0.7578,2741.4,2740.9,3.64842]
[1740229845108,4.40559,2741.4,2740.8,3.64856]
[1740229845401,5.63375388,2741.4,2740.8,3.64856]
[1740229845782,5.63375388,2741.4,2740.7,9.01863]
[1740229845988,5.63375388,2741.4,2740.7,12.66724]
[1740229846161,0.7578,2741.3,2740.7,9.01861]
[1740229846586,0.7578,2741.3,2740.8,0.11631191]
[1740229846786,1.32117539,2741.3,2740.8,0.11631191]
[1740229847011,1.32117539,2741.3,2740.9,0.14907553]
[1740229848223,4.96907539,2741.3,2740.9,0.14907553]
[1740229848425,4.96907539,2741.3,2740.7,9.01864]
[1740229848628,4.96907539,2741.3,2741.0,0.14924021]
[1740229848780,0.61972393,2741.2,2740.7,9.01864]
[1740229849117,0.61972393,2741.2,2741.1,0.14922372]
[1740229849326,0.61972393,2741.2,2740.7,9.01864]
[1740229849489,4.4057,2741.3,2740.7,9.01864]
[1740229849878,4.4057,2741.3,2740.8,0.42144298]
[1740229850876,0.7578,2741.3,2740.9,0.116508]
[1740229851075,0.7578,2741.3,2741.0,0.14924021]
[1740229852678,0.7578,2741.3,2740.8,3.64856]
[1740229852879,1.32117339,2741.3,2740.8,3.64856]
[1740229853080,1.32117339,2741.3,2740.9,0.14925671]
[1740229854010,1.32117339,2741.3,2740.7,9.01865]
[1740229854210,1.32117339,2741.3,2741.0,0.14924021]
[1740229854536,1.32117339,2741.3,2740.8,0.11657212]
[1740229854736,1.32117339,2741.3,2740.8,3.76511212]
[1740229855167,1.32117339,2741.3,2740.9,0.14925671]
[1740229856414,1.32117339,2741.3,2740.7,5.37]
[1740229856628,1.32117339,2741.3,2741.0,0.14924021]
[1740229856826,0.44364114,2741.2,2740.7,9.01861]
[1740229857040,1.32117339,2741.3,2741.1,0.14926398]
[1740229857240,1.32117339,2741.3,2740.7,9.01861]
[1740229857539,1.36527339,2741.3,2740.7,9.01861]
[1740229857839,5.01317339,2741.3,2740.8,0.14931347]
[1740229858024,1.36527339,2741.3,2740.8,3.64856]
[1740229858229,0.8019,2741.3,2741.0,3.64821]
[1740229858598,0.8019,2741.3,2741.1,0.14926398]
[1740229858797,0.8019,2741.3,2740.9,3.64835]
[1740229859017,0.8019,2741.3,2741.2,0.14924749]
[1740229859230,0.8019,2741.3,2740.9,3.64842]
[1740229859413,0.8019,2741.3,2741.2,0.14924749]
[1740229859619,0.8019,2741.3,2740.9,3.76496859]
[1740229859848,0.8019,2741.3,2741.2,0.14924749]
[1740229860163,0.8019,2741.3,2740.9,0.11654859]
[1740229860314,0.8019,2741.3,2741.2,0.14924749]
[1740229860496,0.8019,2741.3,2740.9,0.11654859]
[1740229860699,0.8019,2741.3,2741.0,0.14928047]
[1740229861237,0.8019,2741.3,2741.0,3.79756047]
[1740229861484,0.8019,2741.3,2741.1,3.64815]
[1740229861839,0.8019,2741.3,2741.2,0.14924749]
[1740229862498,0.8019,2741.3,2740.9,3.64834]
[1740229862704,0.8019,2741.3,2741.0,0.14928047]
[1740229863154,0.8019,2741.3,2741.0,3.79752047]
[1740229863506,0.8019,2741.3,2741.1,3.64816]
[1740229863848,0.8019,2741.3,2741.2,0.14919716]
[1740229864030,0.8019,2741.3,2740.9,3.64833]
[1740229864238,0.8019,2741.3,2741.2,0.14919716]
[1740229864707,0.8019,2741.3,2740.8,0.18647021]
[1740229865296,0.8019,2741.3,2740.9,0.14924665]
[1740229871268,0.8019,2741.3,2741.0,3.64827]
[1740229871465,0.8019,2741.3,2740.9,0.14924665]
[1740229871771,4.44981,2741.3,2741.0,0.14923015]
[1740229871955,5.259556,2741.3,2740.8,5.37]
[1740229872125,5.259556,2741.3,2740.9,0.14924665]
[1740229872799,1.611646,2741.3,2740.9,0.14924665]
[1740229873763,1.611646,2741.3,2740.9,3.79764665]
[1740229873929,0.8019,2741.3,2740.9,3.79764665]
[1740229875664,4.22543887,2741.3,2740.9,0.14924665]
[1740229875867,3.64838,2741.0,2740.3,0.7946]
[1740229876055,3.64838,2741.0,2740.3,4.44375]
[1740229876243,4.090268,2741.0,2740.4,0.13026337]
[1740229876442,0.441888,2741.0,2740.5,3.64889]
[1740229876677,0.7705,2741.1,2740.5,3.77913687]
[1740229876883,0.7705,2741.1,2740.7,3.64862]
[1740229877411,4.41872,2741.1,2740.8,0.13019737]
[1740229877543,4.41872,2741.1,2740.5,7.29778]
[1740229877741,4.41872,2741.1,2740.6,0.13023037]
[1740229878152,4.41872,2741.1,2740.6,0.24680277]
[1740229879483,4.41872,2741.1,2740.6,3.89562277]
[1740229879786,4.41872,2741.1,2740.6,3.77906037]
[1740229879987,0.7705,2741.1,2740.6,3.77906037]
[1740229880351,0.7705,2741.1,2740.6,4.69396641]
[1740229880553,0.7705,2741.1,2740.8,3.64856]
[1740229880753,0.7705,2741.1,2740.9,0.13046271]
[1740229881168,0.7705,2741.4,2741.0,3.64822]
[1740229881486,3.7705,2741.4,2741.1,0.13042972]
[1740229882993,7.41836,2741.4,2741.2,0.13041323]
[1740229883285,6.6479,2741.3,2740.6,4.43657]
[1740229883492,5.21945489,2741.4,2741.3,0.13039674]
[1740229883689,8.86723489,2741.4,2740.8,3.64847]
[1740229883998,8.86723489,2741.4,2740.9,0.13046271]
[1740229884189,3.64806,2741.2,2740.9,0.13046271]
[1740229884354,3.64806,2741.2,2740.7,5.37]
[1740229884551,3.64806,2741.2,2740.8,0.13047921]
[1740229884887,0.7914,2741.0,2740.7,5.37]
[1740229885086,0.7914,2741.0,2740.9,0.13046271]
[1740229885251,0.7914,2741.0,2740.8,0.13047921]
[1740229885595,4.4397,2741.0,2740.9,0.13046271]
[1740229885751,0.7914,2741.0,2740.7,5.37]
[1740229886088,6.03323438,2741.3,2740.8,0.13034835]
[1740229886291,4.43939,2741.3,2740.8,0.13034835]
[1740229886591,4.43939,2741.3,2740.9,0.13033185]
[1740229886778,4.43939,2741.3,2740.7,9.01866]
[1740229886975,0.7914,2741.3,2741.0,0.13052671]
[1740229887178,0.7914,2741.3,2740.8,3.64848]
[1740229887482,0.7914,2741.3,2741.1,0.13051022]
[1740229887811,2.24243689,2741.3,2741.2,0.13049373]
[1740229887988,2.24243689,2741.3,2740.8,4.46038]
[1740229888164,0.7914,2741.3,2741.2,0.13049373]
[1740229888354,0.7914,2741.3,2740.8,4.46038]
[1740229888546,0.7914,2741.3,2740.9,0.13054321]
[1740229889992,4.43931,2741.3,2740.9,0.13054321]
[1740229893989,4.43931,2741.3,2740.7,9.01866]
[1740229894193,4.43931,2741.3,2741.0,0.13052671]
[1740229894366,5.89036189,2741.3,2740.8,3.64854]
[1740229894567,4.43931,2741.3,2740.9,0.13054321]
[1740229896266,0.7914,2741.3,2740.7,5.37]
[1740229896462,6.42353887,2741.5,2740.7,5.37]
[1740229896463,0.8295,2741.4,2741.0,0.13052671]
[1740229896712,3.42353887,2741.2,2741.0,0.13052671]
[1740229896872,0.8295,2740.9,2740.7,5.32]
[1740229897064,4.47802,2740.9,2740.7,5.32]
[1740229897261,3.64856,2740.8,2740.7,5.32]
[1740229898070,3.64872,2740.7,2740.1,0.8119]
[1740229898470,3.64872,2740.7,2740.1,4.46139]
[1740229898816,3.64872,2740.7,2740.0,3.64955]
[1740229898817,4.47841,2740.6,2740.0,3.64955]
[1740229899013,3.64905,2740.5,2739.9,5.32]
[1740229899234,0.812746,2740.5,2739.9,8.96971]
[1740229899795,4.461726,2740.5,2739.9,8.96971]
[1740229900135,0.8295,2740.2,2739.9,5.32]
[1740229900716,3.64953,2740.1,2739.9,5.32]
[1740229901027,0.8295,2740.2,2739.6,5.32]
[1740229901232,3.64954,2740.1,2739.5,0.8119]
[1740229901436,3.64954,2740.1,2739.4,3.65037]
[1740229901596,4.88374358,2740.1,2739.4,3.65037]
[1740229901794,0.8295,2740.0,2739.3,9.78241]
[1740229901996,4.25303887,2740.0,2739.3,9.78241]
[1740229902335,3.64979,2739.9,2739.3,5.32]
[1740229902631,4.92844825,2739.9,2739.3,5.32]
[1740229903131,0.762,2739.8,2739.3,5.32]
[1740229903534,4.41195,2739.8,2739.3,5.32]
[1740229904251,7.07364887,2739.7,2739.1,0.0931664]
[1740229904392,3.64995,2739.8,2739.1,0.0931664]
[1740229904393,1.83435989,2739.6,2739.1,0.0931664]
[1740229904599,3.762,2739.6,2739.1,0.0931664]
[1740229905545,3.762,2739.6,2739.1,3.7439764]
[1740229905850,10.87753887,2740.2,2739.4,3.65034]
[1740229905993,0.762,2740.1,2739.3,3.65056]
[1740229906198,0.762,2740.1,2739.4,6.293506]
[1740229906414,0.762,2740.1,2739.7,3.64998]
[1740229907025,0.762,2740.1,2739.8,0.11484284]
[1740229907212,0.762,2740.1,2739.7,3.64998]
[1740229907413,0.762,2740.1,2739.9,0.11482633]
[1740229907613,0.762,2740.1,2739.5,3.65023]
[1740229907614,0.8216,2740.0,2739.5,3.65023]
[1740229907812,0.762,2740.1,2739.5,3.65023]
[1740229908101,3.64964,2740.0,2739.6,0.11487586]
[1740229908646,3.64964,2740.0,2739.7,0.11453696]
[1740229908848,3.64964,2740.0,2739.4,5.32]
[1740229909140,3.762,2740.1,2739.8,0.1145406]
[1740229909312,5.22595389,2740.1,2739.5,3.65026]
[1740229909516,5.22595389,2740.1,2739.9,0.11452409]
[1740229909715,5.22595389,2740.1,2739.5,3.65026]
[1740229910045,5.22595389,2740.1,2740.0,0.11450758]
[1740229910230,5.22595389,2740.1,2739.5,3.65026]
[1740229910425,1.61034928,2740.0,2739.5,3.65026]
[1740229911136,5.22595389,2740.1,2739.7,3.64999]
[1740229911340,7.454,2740.2,2739.6,0.7908]
[1740229911745,7.454,2740.2,2740.0,3.64961]
[1740229912341,7.454,2740.2,2739.9,3.64976]
[1740229912541,3.7767,2740.4,2739.9,3.64976]
[1740229913447,3.7767,2740.4,2739.8,3.64985]
[1740229914136,3.7767,2740.4,2739.8,3.64981]
[1740229914347,3.7767,2740.4,2739.9,3.64972]
[1740229915048,3.7767,2740.4,2739.8,3.64981]
[1740229915248,4.86160689,2740.4,2739.8,3.64981]
[1740229915406,4.86160689,2740.4,2739.9,3.64975]
[1740229916300,4.86160689,2740.4,2739.7,8.96997]
[1740229916911,8.51072689,2740.4,2739.7,8.96997]
[1740229917154,0.7767,2740.3,2739.7,5.32]
[1740229917317,4.42622,2740.1,2739.7,5.32]
[1740229918538,4.42622,2740.1,2739.3,3.65048]
[1740229918539,4.42622,2740.1,2739.3,8.97048]
[1740229918743,0.7767,2740.1,2739.4,3.65041]
[1740229919447,0.7767,2740.1,2739.7,3.64994]
[1740229919957,0.7767,2740.0,2739.3,5.32]
[1740229920119,4.84658389,2739.9,2739.3,5.32]
[1740229920953,0.7767,2739.6,2739.3,5.32]
[1740229921307,3.65033,2739.5,2739.1,0.0931664]
[1740229921674,0.7767,2739.6,2739.1,0.0931664]
[1740229922028,0.7767,2739.6,2739.2,0.11119187]
[1740229922232,2.22673289,2739.6,2739.2,0.11119187]
[1740229923467,2.22673289,2739.6,2739.2,7.41249187]
[1740229923766,0.7767,2739.6,2739.3,3.65056]
[1740229923966,0.7767,2739.6,2739.2,3.76180187]
[1740229924165,0.7767,2739.6,2739.4,0.11122927]
[1740229924355,0.7767,2739.6,2739.3,0.11124578]
[1740229924555,0.7767,2739.6,2739.1,3.7439764]
[1740229924772,0.7767,2739.6,2739.4,0.11122927]
[1740229925065,0.7767,2739.6,2739.3,3.65047]
[1740229925276,0.42002389,2739.9,2739.5,0.11121275]
[1740229925456,7.456,2740.2,2739.5,0.11121275]
[1740229925767,7.456,2740.2,2740.0,3.64953]
[1740229926133,7.456,2740.2,2740.1,3.76073444]
[1740229926333,7.456,2740.2,2740.1,4.50176088]
[1740229926969,0.7518,2740.8,2740.5,3.64895]
[1740229927273,0.7518,2740.8,2740.6,3.75938902]
[1740229927584,0.7518,2740.8,2740.6,0.11066902]
[1740229928066,0.7518,2740.8,2740.7,0.11065252]
[1740229928370,0.7518,2740.8,2740.4,3.64907]
[1740229928544,0.7518,2740.8,2740.7,0.11065252]
[1740229928747,0.7518,2740.8,2740.4,3.64907]
[1740229928946,0.7518,2740.8,2740.7,0.11065252]
[1740229929154,0.7518,2740.8,2740.4,3.64907]
[1740229929560,0.7518,2740.8,2740.5,0.11068552]
[1740229931184,0.7518,2740.8,2740.6,3.64882]
[1740229931376,0.7869,2741.0,2740.6,3.64874]
[1740229931685,0.7869,2741.0,2740.7,0.1100592]
[1740229933986,1.50794389,2741.0,2740.7,0.1100592]
[1740229934371,3.42353887,2740.9,2740.4,3.64909]
[1740229934560,3.42353887,2740.9,2740.8,0.10936893]
[1740229935083,3.42353887,2740.9,2740.4,3.64909]
[1740229935393,3.42353887,2740.9,2740.8,0.10936893]
[1740229935584,3.42353887,2740.9,2740.4,3.64909]
[1740229936097,3.42353887,2740.9,2740.5,0.10941843]
[1740229937776,0.7869,2741.0,2740.6,3.64881]
[1740229938178,0.7869,2741.0,2740.7,0.10938543]
[1740229940518,0.7869,2741.2,2740.7,3.75807543]
[1740229941295,3.0,2741.1,2740.7,3.75807543]
[1740229947524,2.61832189,2741.2,2740.9,3.6484]
[1740229947724,0.7869,2741.2,2741.0,0.1092354]
[1740229947893,0.7869,2741.2,2740.7,3.64869]
[1740229948096,0.7869,2741.2,2740.8,0.10926839]
[1740229948301,0.7869,2741.2,2740.7,3.64869]
[1740229948633,0.7869,2741.2,2740.8,0.10926839]
[1740229948795,5.22077089,2741.2,2740.8,0.10926839]
[1740229949001,3.42353887,2741.0,2740.5,3.64889]
[1740229949195,3.42353887,2741.0,2740.9,0.1092519]
[1740229949402,3.42353887,2741.0,2740.5,3.64888]
[1740229949616,3.42353887,2741.0,2740.9,0.1092519]
[1740229949803,4.28796985,2741.0,2740.5,3.64888]
[1740229950139,3.42353887,2741.0,2740.5,3.64885]
[1740229950320,0.7584,2740.9,2740.6,0.10930139]
[1740229953542,4.18193887,2740.7,2740.6,0.10930139]
[1740229953715,7.83074887,2740.7,2740.3,5.32]
[1740229953903,7.83074887,2740.7,2740.4,0.10529946]
[1740229954104,8.97868076,2740.7,2740.4,0.10529946]
[1740229954715,8.97868076,2740.7,2740.1,3.64947]
[1740229955031,8.97868076,2740.7,2740.2,0.10533247]
[1740229955212,5.32987076,2740.7,2740.2,3.75469247]
[1740229955529,8.97865076,2740.7,2740.2,0.10533247]
[1740229957247,3.89786508,2740.6,2740.2,0.10533247]
[1740229957450,4.45605,2740.5,2740.2,0.10533247]
[1740229957614,3.64912,2740.4,2740.2,0.10533247]
[1740229957806,4.45605,2740.5,2740.0,0.18665804]
[1740229958001,4.45605,2740.5,2740.3,0.10531597]
[1740229958334,0.83539151,2740.4,2740.0,0.18665804]
[1740229958946,4.48451151,2740.4,2739.9,3.64976]
[1740229959261,0.83539151,2740.4,2739.9,3.64976]
[1740229959473,4.45605,2740.5,2739.9,3.64976]
[1740229960354,8.10512,2740.5,2739.9,3.64976]
[1740229960549,3.64913,2740.4,2740.0,0.11659602]
[1740229960722,4.45605,2740.5,2740.0,0.11659602]
[1740229961382,4.45605,2740.5,2740.1,0.10472216]
[1740229961518,5.9986714,2740.5,2740.1,0.10472216]
[1740229962261,9.6477214,2740.5,2740.1,0.10472216]
[1740229962466,3.6491,2740.4,2740.1,0.10472216]
[1740229962632,3.6491,2740.4,2739.9,3.64976]
[1740229963168,3.6491,2740.4,2740.0,0.10473867]
[1740229963537,5.9986714,2740.5,2740.0,0.10473867]
[1740229963872,9.6477514,2740.5,2740.0,0.10473867]
[1740229964074,3.64913,2740.4,2740.0,0.10473867]
[1740229965142,3.64913,2740.4,2739.8,3.64987]
[1740229965342,3.64913,2740.4,2739.9,0.10475518]
[1740229965676,3.64929,2740.3,2739.9,0.10475518]
[1740229966026,3.64929,2740.3,2739.8,0.27218487]
[1740229966227,4.24918114,2740.3,2740.0,0.10473867]
[1740229966455,4.24918114,2740.3,2739.9,0.10475518]
[1740229966627,4.24918114,2740.3,2740.1,0.10533552]
[1740229966840,0.59989114,2740.3,2740.0,0.10535203]
[1740229967068,5.9986614,2740.5,2739.8,3.64987]
[1740229967259,3.64911,2740.4,2740.1,0.10533552]
[1740229967493,5.9986614,2740.5,2739.8,3.64977]
[1740229967984,9.6477214,2740.5,2739.9,0.10536854]
[1740229968175,5.9986614,2740.5,2739.9,0.10536854]
[1740229968374,2.3496214,2740.5,2740.0,3.64963]
[1740229968595,0.807,2740.5,2740.1,0.10533552]
[1740229968738,0.807,2740.5,2740.1,3.75483552]
[1740229969589,0.807,2740.5,2740.1,0.10533552]
[1740229970096,0.807,2740.5,2740.2,0.10531902]